Cogmind - Beta 11.1 @@@ ROGUE MODE // 2022.10.18 @ 11:43:45 Player: Faeren Result: Destroyed by as-43808 with Assembled Heavy Rifle Performance ------------- Evolutions (0) 0 Regions Visited (2) 400 Robots Destroyed (18) 90 Value Destroyed (452) 452 Prototype IDs (2) 40 Alien Tech Used (0) 0 Bonus (0) 0 TOTAL SCORE: 982 Bonus ------- None Cogmind --------- Core Integrity 0/250 Matter 300/300 Energy 250/250 System Corruption 2% Temperature Cool (0) Movement Walking (190) Ox1 Location -10/Mines Parts ------- > --- POWER (1) -------- Ion Engine > --- PROPULSION (2) --- Aluminum Leg > --- UTILITY (2) ------ Small Storage Unit Core Shielding > --- WEAPON (2) ------- Light Assault Rifle > --- INVENTORY (8) ---- Light Nuclear Core Aluminum Leg Heat Sink ECM Suite Light Armor Plating Beam Cannon Grenade Launcher Mining Laser Peak State ------------ > --- POWER ------------ Ion Engine > --- PROPULSION ------- Aluminum Leg Aluminum Leg > --- UTILITY ---------- Small Storage Unit Core Shielding > --- WEAPON ----------- Beam Cannon Light Assault Rifle > --- INVENTORY -------- Light Nuclear Core Aluminum Leg Heat Sink ECM Suite Light Armor Plating Beam Cannon Grenade Launcher Mining Laser [Rating: 8] Favorites ----------- Power Ion Engine Engine Ion Engine Propulsion Aluminum Leg Leg Aluminum Leg Utility Small Storage Unit Storage Small Storage Unit Protection Core Shielding Weapon Beam Cannon Energy Gun Medium Laser Energy Cannon Beam Cannon Ballistic Gun Light Assault Rifle Ballistic Cannon Light Cannon Launcher Grenade Launcher Build | -11 -10 -10 ------- Run | Scr Mat Min Slots Evolved . | . . . Power . | . . . Propulsion . | . . . Utility . | . . . Weapon . | . . . Parts Attached 21 | 6 13 2 Power 3 | 1 2 . Engine 3 | 1 2 . Core . | . . . Reactor . | . . . Propulsion 7 | 2 4 1 Treads . | . . . Leg 7 | 2 4 1 Wheel . | . . . Hover . | . . . Flight . | . . . Utility 3 | 1 2 . Device . | . . . Storage 2 | 1 1 . Processor . | . . . Hackware . | . . . Protection 1 | . 1 . Artifact . | . . . Weapon 8 | 2 5 1 Energy Gun 1 | 1 . . Energy Cannon 2 | . 2 . Ballistic Gun 3 | 1 1 1 Ballistic Cannon 1 | . 1 . Launcher 1 | . 1 . Special Weapon . | . . . Impact Weapon . | . . . Slashing Weapon . | . . . Piercing Weapon . | . . . Special Melee Weapon . | . . . Unidentified Prototypes . | . . . Parts Lost 5 | . 2 3 Power 1 | . 1 . Propulsion 2 | . 1 1 Utility . | . . . Weapon 2 | . . 2 Highest Loss Streak 2 | . 1 2 To Critical Strikes . | . . . Average Slot Usage (%) 98 | . 99 96 Engine 14 | . 14 14 Leg 27 | . 28 26 Storage 16 | . 18 14 Protection 11 | . 9 14 Energy Gun 4 | . 6 . Energy Cannon 8 | . 6 12 Ballistic Gun 7 | . 7 6 Ballistic Cannon 7 | . 6 7 Naked Turns . | . . . Heaviest Build 17 | 13 17 17 Greatest Support 20 | 20 20 20 Greatest Overweight (x) 4 | 4 . 1 Average Overweight (x) . | 1 . . Largest Inventory Capacity 8 | 8 8 8 Average Capacity 7 | 7 8 8 Most Carried 8 | 8 8 8 Average Carried 6 | 3 6 7 Final Capacity 8 | 8 8 8 Final Carried 8 | 6 8 8 Class Distribution -------------------- 100% | Mutant Dominant Class ---------------- Mutant | -10/Materials Mutant | -10/Mines Resources | -11 -10 -10 ----------- Run | Scr Mat Min Matter Collected 625 | 222 328 75 Remotely . | . . . Salvage Created 636 | . 506 130 Parts 33 | . 29 4 Haulers Intercepted 1 | . 1 . Recyclers Shooed 2 | . 2 . Parts Field Recycled . | . . . Retrieved Matter . | . . . Parts Self-Destructed . | . . . Prevented . | . . . Kills | -11 -10 -10 ------- Run | Scr Mat Min Combat Hostiles Destroyed 14 | . 9 5 Guns 6 | . 3 3 Cannons 7 | . 5 2 AOE 1 | . 1 . Classes Destroyed 9 | . 8 1 Worker 1 | . 1 . Builder 1 | . 1 . Tunneler 1 | . 1 . Hauler 1 | . 1 . Recycler 1 | . 1 . Watcher 2 | . 2 . Swarmer 1 | . 1 . Grunt 10 | . 8 2 Assembled 3 | . . 3 Best Kill Streak 5 | . 5 2 Combat Bots Only 4 | . 4 2 Max Kills in Single Turn 2 | . 2 1 Gunslinging . | . . . Exploded 1 | . 1 . Melee . | . . . Uniques/NPCs Destroyed . | . . . Combat | -11 -10 -10 -------- Run | Scr Mat Min Damage Taken 985 | . 637 348 Core 258 | . 172 86 Absorbed by Shields . | . . . Redirected to Shielding 28 | . 9 19 Core Remaining (%) 100 | 100 . . Volleys Fired 64 | . 47 17 Largest 2 | . 2 2 Hottest 95 | . 95 95 Shots Fired 124 | . 92 32 Gun 60 | . 50 10 Cannon 63 | . 41 22 Launcher 1 | . 1 . Special . | . . . Kinetic 67 | . 50 17 Thermal 56 | . 41 15 Explosive 1 | . 1 . Electromagnetic . | . . . Robot Hit Streak 11 | . 11 4 Robot Miss Streak 3 | . 3 2 Penetration Max . | . . . Secondary Targets 1 | . 1 . Max Gunslinging Chain 1 | . 1 . Shots Hit Robots 64 | . 48 16 Core Hits 38 | . 27 11 Critical Kills . | . . . Critical Parts Destroyed . | . . . Critical Strikes 2 | . 2 . Burn 2 | . 2 . Melee Attacks . | . . . Impact . | . . . Slashing . | . . . Piercing . | . . . Sneak Attacks . | . . . Combat Hostiles . | . . . Follow-up Attacks . | . . . Damage Inflicted 1002 | . 791 211 Guns 371 | . 322 49 Cannons 507 | . 345 162 Explosions 124 | . 124 . Melee . | . . . Ramming . | . . . Kinetic 357 | . 290 67 Thermal 521 | . 377 144 Explosive 124 | . 124 . Electromagnetic . | . . . Impact . | . . . Slashing . | . . . Piercing . | . . . Highest Corruption 2 | . 2 2 Average Corruption 1 | . 1 2 Corruption Purged . | . . . Corruption Blocked . | . . . Effects 16 | . 9 7 Message Errors 5 | . 4 1 Matter Fused 3 | . 2 1 Heat Flow Errors 4 | . 1 3 Energy Discharges 1 | . . 1 Data Loss (minor) 1 | . 1 . Alerts 1 | . . 1 Weapon Failures 1 | . 1 . Overload Shots . | . . . Overflow Damage 6 | . . 6 Projectiles 6 | . . 6 Explosions . | . . . Melee . | . . . Knockbacks 3 | . 3 . Impact . | . . . Kinetic 2 | . 2 . Secondary 1 | . 1 . Self-Inflicted Damage . | . . . Shots . | . . . Rammed . | . . . Targets Rammed . | . . . Kicked . | . . . Crushed . | . . . Highest Temperature 299 | . 252 299 Average Temperature 89 | . 84 99 Received Heat Transfer 329 | . 246 83 Effects 1 | . 1 . Interference 1 | . 1 . Siege Activations . | . . . Robots Corrupted . | . . . Combat Hostiles . | . . . Parts Fried . | . . . Impact Corruptions . | . . . Robots Melted . | . . . Combat Hostiles . | . . . Parts Melted 1 | . 1 . Heat Transferred 1406 | . 1110 296 Parts Sabotaged . | . . . Parts Stolen . | . . . Parts Stripped . | . . . Power Chain Reactions . | . . . Missiles Intercepted . | . . . Alert | -11 -10 -10 ------- Run | Scr Mat Min Peak Influence 291 | . 291 123 Initial 68 | . . 68 Average 92 | . 109 91 Maximum Alert Level 1 | . 1 . Low Security (%) 90 | 100 84 100 Level 1 9 | . 15 . Level 2 . | . . . Level 3 . | . . . Level 4 . | . . . Level 5 . | . . . High Security . | . . . Max Security . | . . . Squads Dispatched 3 | . 3 . Investigation 1 | . 1 . Extermination . | . . . Reinforcement 2 | . 2 . Assault . | . . . Garrison . | . . . Intercept . | . . . Searches Triggered . | . . . Construction Impeded . | . . . Haulers Reinforced . | . . . Active Scanning Responses . | . . . Cargo Convoy Interrupts . | . . . Stealth | -11 -10 -10 --------- Run | Scr Mat Min Distress Signals 3 | . 2 1 Communications Jammed . | . . . Distress Signals . | . . . Times Spotted 29 | . 19 10 Peak Tracking Total 6 | . 6 3 Tactical Retreats 2 | . . 2 Traps | -11 -10 -10 ------- Run | Scr Mat Min Traps Triggered 1 | . 1 . Indirectly . | . . . Trap Hack Attempts . | . . . Triggered . | . . . Disarmed . | . . . Reprogrammed . | . . . Reused . | . . . Traps Extracted . | . . . Installed . | . . . Triggered . | . . . Machines | -11 -10 -10 ---------- Run | Scr Mat Min Machines Disabled 2 | . 1 1 Max in Single Turn 1 | . 1 1 Machines Sabotaged . | . . . Garrisons Compromised . | . . . Overloaded Fab Kills . | . . . Hacking | -11 -10 -10 --------- Run | Scr Mat Min Machines Accessed 5 | . 5 . Terminals 4 | . 4 . Fabricators . | . . . Repair Stations . | . . . Recycling Units 1 | . 1 . Scanalyzers . | . . . Garrison Access . | . . . Total Hacks 14 | . 14 . Successful 9 | . 9 . Failed 5 | . 5 . Catastrophic 1 | . 1 . Database Lockouts . | . . . Manual 2 | . 2 . Terminals 12 | . 12 . Fabricators . | . . . Repair Stations . | . . . Recycling Units 2 | . 2 . Scanalyzers . | . . . Garrison Access . | . . . Terminal Hacks 7 | . 7 . Robot Analysis 1 | . 1 . Prototype ID Bank 1 | . 1 . Terminal Index 1 | . 1 . Alert Level 1 | . 1 . Locate Traps 1 | . 1 . Security Status 1 | . 1 . Hauler Manifests 1 | . 1 . Fabricator Hacks . | . . . Repair Station Hacks . | . . . Recycling Unit Hacks 2 | . 2 . Report Inventory 1 | . 1 . Retrieve Components 1 | . 1 . Scanalyzer . | . . . Garrison Access Hacks . | . . . Unauthorized Hacks . | . . . Terminals . | . . . Fabricators . | . . . Repair Stations . | . . . Recycling Units . | . . . Scanalyzers . | . . . Garrison Access . | . . . Data Cores Recovered . | . . . Used . | . . . Hacking Detections 4 | . 4 . Full Trace Events . | . . . Feedback Events . | . . . Feedback Blocked . | . . . Robot Schematics Acquired . | . . . Robots Built . | . . . Authchips . | . . . Time . | . . . Total Robot Build Rating . | . . . Part Schematics Acquired . | . . . Parts Built . | . . . Authchips . | . . . Time . | . . . Total Part Build Rating . | . . . Parts Repaired . | . . . Time . | . . . Parts Recycled . | . . . Recycled Matter . | . . . Retrieved Matter . | . . . Retrieved Components 10 | . 10 . Parts Scanalyzed . | . . . Part Schematics Acquired . | . . . Parts Damaged . | . . . Bothacking | -11 -10 -10 ------------ Run | Scr Mat Min Used RIF Installer . | . . . Robots Hacked . | . . . Non-combat . | . . . Combat . | . . . Robot Hacks Applied . | . . . Relay Couplers Released . | . . . Fabnet Peak Effective % . | . . . Robots Rewired . | . . . Allies Hacked . | . . . Hacks Repelled . | . . . Allies | -11 -10 -10 -------- Run | Scr Mat Min Total Allies . | . . . Largest Group . | . . . Highest-Rated Group . | . . . Highest-Rated Ally . | . . . Total Orders . | . . . Ally Attacks . | . . . Total Damage . | . . . Kills . | . . . Allies Corrupted . | . . . Allies Melted . | . . . Intel | -11 -10 -10 ------- Run | Scr Mat Min Robot Analysis Total 1 | . 1 . Derelict Logs Recovered 1 | . . 1 Drone Launches . | . . . Drone Recoveries . | . . . Exploration | -11 -10 -10 ------------- Run | Scr Mat Min Turns Passed 1102 | 108 632 362 Spaces Moved 633 | 48 352 233 Core 28 | 28 . . Treads . | . . . Legs 605 | 20 352 233 Wheels . | . . . Hover . | . . . Flight . | . . . Fastest Speed 50 | 50 120 120 Average Speed 126 | 177 120 125 Slowest Speed 250 | 250 120 190 Overloaded Moves . | . . . Propulsion Burnouts . | . . . Robots Hopped . | . . . Cave-ins Triggered . | . . . Exploration Rate (%) 33 | 4 59 37 Regions Visited 2 Branch Regions 1 Pre-discovered Areas . | . . . Known Exits Taken . | . . . Unknown Exits Taken 2 | 1 1 . Scrap Searched 1 | . . 1 Spaces Dug . | . . . Terrain Destroyed 8 | . 8 . Melee . | . . . Projectile . | . . . AOE 8 | . 8 . Terrain Rammed . | . . . Walls Destroyed . | . . . Machines Disabled . | . . . Actions | -11 -10 -10 --------- Run | Scr Mat Min Total 820 | 71 475 274 Wait 61 | 6 38 17 Move 631 | 47 351 233 Hop . | . . . Pick Up 30 | 12 15 3 Fast Attach . | . . . Attach 10 | 6 3 1 Detach . | . . . Swap 11 | . 10 1 Drop 13 | . 11 2 Fire 64 | . 47 17 Melee . | . . . Ram . | . . . Kick . | . . . Crush . | . . . Escape Stasis . | . . . Rewire . | . . . Trap . | . . . Miscellaneous . | . . . Route ------- -11/Scrapyard -10/Materials -10/Mines History --------- Turn | Location | Event 2 | -11/Scrapyard | Met Revision 17 46 | -11/Scrapyard | Discovered new exit (range 15) 109 | -11/Scrapyard | Entered Materials 253 | -10/Materials | Core integrity fell below 50% 301 | -10/Materials | Build established: Mutant 416 | -10/Materials | Discovered new exit (range 13) 741 | -10/Materials | Entered Mines 767 | -10/Mines | Learned Materials garrison access intel 844 | -10/Mines | Assembled infested the area 903 | -10/Mines | Core integrity fell below 20% 1103 | -10/Mines | Destroyed by as-43808 with Assembled Heavy Rifle Last Messages --------------- 00945_ Lgt. Cannon destroyed. 00950_ B0:E >105ZSDYAXR%=>3WKNNOR6PHLL8 UO<6Z%C 00954_ G-47 Trooper destroyed. 00956_ Acquired 29 matter. 00960_ Acquired Lgt. Nuclear Core. 00962_ Dropped Aluminum Leg. 00964_ Acquired Aluminum Leg. 00971_ Acquired 10 matter. 01006_ Destroyed Asb. F-torch. 01006_ as-36086 destroyed. 01013_ Acquired 3 matter. 01015_ K-01 Serf collects debris. 01029_ System corrupted: Matter fused (-5). 01051_ System corrupted: Heat flow error (+165). 01063_ Aluminum Leg destroyed. 01069_ Beam Cannon destroyed. 01072_ as-98212 destroyed. 01074_ Acquired 2 matter. 01088_ System corrupted: Heat flow error (+184). 01102_ R-06 Scavenger destroyed. Map ----- +----------------------------------------------------+ | ?????????????????????????????????????????????????? | | ?????????????????????????????????????????????????? | | ?????????????????????????????????????????????????? | | ?????????????????????????????????????????????????? | | ?????????????????????????????????????????????????? | | ?????????????????????????????????????????????????? | | ?????????????????????????????????????????????????? | | ?????????????????????????????????????????####????? | | ???????????????????????????????????#?????# ????? | | ????????????????????????????????????%????# #????? | | ?????????????????????????????????????!???# #????? | | ?????????????????????????????????????? ### ##???? | | ??????????????????????????????????????? = #???? | | ????????????????????????????????????????# ##??? | | ????????????????????????????????????????# #??? | | ???????????????????????????????????###### #??? | | ??????????????????????????????????## ##= ! ##??? | | ??????????????????????????????????# = = ##???? | | ???????????????????= ?#####??????## == ##????? | | ?????????????????????%? #?????## #?????? | | ??????????????????????%[ #??#### ##### #?????? | | ???????????????????????#a #?## ##???# #?????? | | ???????????????????????# a### ##????#%#?????# | | ???????????????????????# %!! ##?????# #????## | | ???????????????????????# !="!% #??????# #???## | | ???????????????????????##@### #??????# #???# | | ????????????????????????# ## ##??????# ##### | | ????????????????????????# ##???????# | | ????????????????????????# ### ##????????######## | | ????????????????????????# ######????????????????## | | ????????????????????????# #????????????????????# | | ????????????????????????### #????????????????##### | | ??????????????????????????# #????????????????# | | ??????????????????????????# ###??????????????# ### | | ??????????????????????????# % #??????????????# #?? | | ??????????????????????????### #??????????????# #?? | | ????????????????????????????# #??????????????# #?? | | ????????????????????????????# #??????????????# #?? | | ????????????????????????????# #??????????##### #?# | | ????????????????????????????# #??????????# ### | | ????????????????????????????# #??????????# ###### | | ????????????????????????????# #??????????# #????# | | ????????????????????????????# #??????????# #???## | | ???????????????????????????## #??????????# #??## | | ??????????????????????????## ########### #?## | | ??????????????????????????# ### | | ??????????????????????????# %= | | ??????????????????????????# ###### # | | ??????????????????????????## ##????# #### | | ???????????????????????????#####??????# #??# | +----------------------------------------------------+ Best States ------------- Heat Dissipation 25 Energy Generation 10 Energy Capacity 250 Matter Stores 350 Matter Capacity 350 Sight Range 16 Terrain Scan Density 10 Core Shielding 20 Evasion (%) 55 Item Schematics ----------------- None Robot Schematics ------------------ None Fabricated ------------ Nothing Alien Tech Used ----------------- None Achievements -------------- None Challenges ------------ None Game ------ Seed ArmorCannonComputer Manual? 0 Play Time 00:49:19 Cumulative 11.2 hours Start 2022.10.18 @ 10:39:30 End 2022.10.18 @ 11:43:45 Sessions 1 Manual Loads 0 Difficulty Rogue Special Mode None Game No. 9 Rogue 9 Adventurer 0 Explorer 0 Win Type - Total 0 Types 0/0/0/0/0/0/0/0/0 Lore% 19 Gallery% 12 Achievement% 15 Wizard Run 0 Options --------- ASCII 0 Keyboard 0 Movement Mouse Keybinds 0 Fullscreen 1 Font 18/SmallcapsGlow Map View 76x50 Tactical HUD 1 Map Filters NONE Filters NONE Steam 1 RUN: 61dc1890-5b13-4c0a-aada-fc7135a037b0